lending/lending_fUSD_20251107
["ID","MTS","AMOUNT","RATE_DAILY","PERIOD"]
[393379600,1762554256019,-500.0,0.00039,30]
[393379601,1762554256045,-500.0,0.00039,30]
[393379602,1762554256072,-196.9097,0.00039,30]
[393379603,1762554256099,-500.0,0.00039,30]
[393379604,1762554256127,-201.93355563,0.00039,30]
[393379605,1762554256158,-2000.0,0.00039,30]
[393379606,1762554256188,-2000.0,0.00039,30]
[393379607,1762554256218,-2000.0,0.00039,30]
[393379608,1762554256247,-2000.0,0.00039,30]
[393379609,1762554256279,-430.24,0.00039,30]
[393379610,1762554256310,-603.488262,0.00039,30]
[393379611,1762554256341,-463.74,0.00039,60]
[393379612,1762554256374,-250.0,0.0003901,30]
[393379613,1762554256402,-339.67876087,0.00039017,30]
[393379614,1762554256435,-1811436.44781812,0.00039017,30]
[393379615,1762554256465,-1811436.44781812,0.00039017,30]
[393379616,1762554256497,-455348.87841988,0.00039017,30]
[393379617,1762554288195,-2000.0,0.00039,30]
[393379618,1762554288222,-300.0,0.00039016,93]
[393379619,1762554288252,-1356087.56939824,0.00039017,30]
[393379620,1762554288281,-1811436.44781812,0.00039017,30]
[393379621,1762554288309,-1811436.44781812,0.00039017,30]
[393379622,1762554288335,-282.0051543,0.00039024,120]
[393379623,1762554288360,-400.0,0.00039025,30]
[393379624,1762554288385,-400.0,0.00039025,30]
[393379625,1762554288411,-302.79777279,0.00039025,30]
[393379626,1762554288438,-1741.33264181,0.0003903,120]
[393379627,1762554288464,-250.0,0.0003903,30]
[393379628,1762554288489,-15363.39939662,0.00039031,30]
[393379629,1762554292154,-185.05570861,0.000382,120]
[393379630,1762554292198,-2000.0,0.00039,30]
[393379631,1762554292226,-2000.0,0.00039,30]
[393379632,1762554292252,-2000.0,0.00039,30]
[393379633,1762554292279,-3636.60060338,0.00039031,30]
[393379634,1762554292305,-708.0,0.00039031,30]
[393379635,1762554292333,-150.05,0.00039036,30]
[393379636,1762554292359,-1278.46,0.00039067,30]
[393379637,1762554292386,-1065.12680654,0.00039107,120]
[393379638,1762554292413,-2000.0,0.00039142,120]
[393379639,1762554292441,-2254.0,0.00039178,30]
[393379640,1762554292470,-150.0,0.0003927,120]
[393379641,1762554292499,-269.22624179,0.000394,120]
[393379642,1762554292527,-170.04807058,0.000394,120]
[393379643,1762554292557,-1847.95725809,0.000394,120]
[393379644,1762554292585,-171.85112807,0.000394,120]
[393379645,1762554292614,-150.00401282,0.00039562,30]
[393379646,1762554292643,-150.00401282,0.00039699,30]
[393379647,1762554292679,-150.00401282,0.00039863,30]
[393379648,1762554292707,-244.85,0.0004,30]
[393379649,1762554292736,-500.0,0.0004,120]
[393379650,1762554292765,-2099.83880799,0.0004,120]
[393379651,1762554292793,-934.51235948,0.0004,30]
[393379652,1762554292820,-205.89238166,0.0004,30]
[393379653,1762554292846,-153.42443002,0.0004,120]
[393379654,1762554292872,-438.44376215,0.0004,120]
[393379655,1762554292897,-477.99034883,0.0004,120]
[393379656,1762554292923,-1892.78806765,0.0004,120]
[393379657,1762554292949,-200.0,0.0004,120]
[393379658,1762554292976,-180284.60424856,0.0004,120]
[393379659,1762554293002,-150.0,0.0004,120]
[393379660,1762554293028,-671.00930446,0.0004,120]
[393379661,1762554293055,-1099.89876314,0.0004,120]
[393379662,1762554293082,-557.75,0.0004,120]
[393379663,1762554293110,-3423.12,0.0004,120]
[393379664,1762554293137,-403.43,0.0004,120]
[393379665,1762554293164,-264.77,0.0004,120]
[393379666,1762554293192,-1617.87,0.0004,120]
[393379667,1762554293219,-384.15,0.0004,120]
[393379668,1762554293245,-2853.41,0.0004,120]
[393379669,1762554293273,-150.0,0.0004,60]
[393379670,1762554293300,-2000.0,0.0004,120]
[393379671,1762554293326,-2000.0,0.00040008,120]
[393379672,1762554293353,-204.30975317,0.00040014,120]
[393379673,1762554293380,-150.00401282,0.00040027,30]
[393379674,1762554293408,-150.0,0.00040073,120]
[393379675,1762554293440,-150.00401282,0.00040192,30]
[393379676,1762554293469,-150.00401282,0.00040356,30]
[393379677,1762554293498,-150.00401282,0.00040493,30]
[393379678,1762554293527,-269.22624179,0.000406,120]
[393379679,1762554293555,-170.04807058,0.000406,120]
[393379680,1762554293583,-1847.95725809,0.000406,120]
[393379681,1762554293610,-171.85112807,0.000406,120]
[393379682,1762554293638,-150.0,0.00040655,120]
[393379683,1762554293668,-150.00401282,0.00040658,30]
[393379684,1762554293699,-1327.01719834,0.00040658,120]
[393379685,1762554293729,-150.00401282,0.00040822,30]
[393379686,1762554293756,-2000.0,0.00040874,120]
[393379687,1762554293784,-2839.643,0.0004092,59]
[393379688,1762554293812,-211.0,0.0004093,30]
[393379689,1762554293840,-150.00401282,0.00040986,30]
[393379690,1762554293867,-812.30374087,0.00041,120]
[393379691,1762554293894,-20000.0,0.00041,56]
[393379692,1762554293921,-1391.24,0.00041,60]
[393379693,1762554293951,-459.0,0.00041,90]
[393379694,1762554293979,-999.0,0.00041095,120]
[393379695,1762554294006,-27359.15,0.00041096,120]
[393379696,1762554294032,-442.36,0.00041096,120]
[393379697,1762554294059,-151.0,0.0004111,120]
[393379698,1762554294085,-150.00401282,0.00041151,30]
[393379699,1762554294112,-477.99034883,0.000412,120]
[393379700,1762554294138,-459.0,0.00041268,90]
[393379701,1762554294170,-150.00401282,0.00041288,30]
[393379702,1762554294196,-200.0,0.000414,120]
[393379703,1762554294224,-150.0,0.00041434,120]
[393379704,1762554294250,-2000.0,0.0004174,120]
[393379705,1762554294278,-269.22624179,0.000418,120]
[393379706,1762554294304,-170.04807058,0.000418,120]
[393379707,1762554294333,-1847.95725809,0.000418,120]
[393379708,1762554294360,-171.85112807,0.000418,120]
[393379709,1762554294386,-273.47129591,0.00041999,120]
[393379710,1762554294412,-335.40921184,0.00042,120]
[393379711,1762554294441,-309.92020337,0.00042,120]
[393379712,1762554294467,-573.5889245,0.00042,30]
[393379713,1762554294493,-446.2557493,0.00042,30]
[393379714,1762554294519,-558.36270004,0.00042,30]
[393379715,1762554294545,-554.04027849,0.00042,120]
[393379716,1762554294572,-764.77779991,0.00042,120]
[393379717,1762554294598,-489.54173997,0.00042,30]
[393379718,1762554294626,-200.0,0.00042,120]
[393379719,1762554294657,-150.0,0.00042,60]
[393379720,1762554294687,-200.0,0.00042026,120]
[393379721,1762554294717,-150.0,0.00042049,120]
[393379722,1762554294918,-1912.3,0.00042062,120]
[393379723,1762554294948,-194.0505874,0.00042121,120]
[393379724,1762554294975,-204.30975317,0.00042206,120]
[393379725,1762554295003,-477.99034883,0.000424,30]
[393379726,1762554295029,-253.27531216,0.000425,120]
[393379727,1762554295064,-78355.7756321,0.000425,120]
[393379728,1762554295095,-266.562367,0.00042606,120]
[393379729,1762554295124,-275.39673303,0.000427,90]
[393379730,1762554295152,-211.0,0.0004295,30]
[393379731,1762554295181,-1317.27674339,0.00043,120]
[393379732,1762554295208,-1333.67612438,0.00043,120]
[393379733,1762554295236,-150.0,0.00043,120]
[393379734,1762554295264,-172.54457858,0.00043,120]
[393379735,1762554295293,-158.29860388,0.00043,120]
[393379736,1762554295322,-200.0,0.00043,120]
[393379737,1762554295350,-203.81,0.00043014,120]
[393379738,1762554295378,-459.0,0.00043044,90]
[393379739,1762554295406,-269.22624179,0.000431,120]
[393379740,1762554295436,-1847.95725809,0.000431,120]
[393379741,1762554295464,-171.85112807,0.000431,120]
[393379742,1762554295492,-862.55463796,0.00043123,120]
[393379743,1762554295520,-688.22311594,0.0004314,120]
[393379744,1762554295553,-200.0,0.0004316,120]
[393379745,1762554295582,-737.2321,0.0004322,30]
[393379746,1762554295610,-853.79824565,0.0004328,120]
[393379747,1762554295641,-500.71596631,0.000433,120]
[393379748,1762554295680,-1418.3,0.00043516,30]
[393379749,1762554295714,-549.09,0.00043516,30]
[393379750,1762554295749,-150.0,0.00043687,120]
[393379751,1762554295777,-302.56315612,0.000437,120]
[393379752,1762554295810,-663.46907475,0.000438,30]
[393379753,1762554295839,-404.15348277,0.000438,120]
[393379754,1762554295869,-999.0,0.00043835,120]
[393379755,1762554295898,-500.0,0.00043836,30]
[393379756,1762554295928,-500.0,0.00043836,30]
[393379757,1762554295956,-856.44905824,0.000439,120]
[393379758,1762554295984,-467.25770418,0.000439,120]
[393379759,1762554296012,-1810.37307057,0.00043987,120]
[393379760,1762554296039,-154.0,0.00044,120]
[393379761,1762554296069,-153.0,0.00044,120]
[393379762,1762554296099,-1019.37990501,0.00044,120]
[393379763,1762554296128,-323.86296298,0.00044,120]
[393379764,1762554296157,-200.0,0.00044,120]
[393379765,1762554296185,-546.833787,0.00044,57]
[393379766,1762554296213,-150.0,0.00044,60]
[393379767,1762554296240,-244.85,0.00044,30]
[393379768,1762554296271,-158.34757333,0.0004425,120]
[393379769,1762554296300,-400.0,0.00044254,120]
[393379770,1762554296327,-400.0,0.00044254,120]
[393379771,1762554296355,-400.0,0.00044254,120]
[393379772,1762554296381,-400.0,0.00044254,120]
[393379773,1762554296408,-400.0,0.00044254,120]
[393379774,1762554296436,-400.0,0.00044254,120]
[393379775,1762554296462,-400.0,0.00044254,120]
[393379776,1762554296489,-400.0,0.00044254,120]
[393379777,1762554296518,-400.0,0.00044254,120]
[393379778,1762554296544,-400.0,0.00044254,120]
[393379779,1762554296570,-400.0,0.00044254,120]
[393379780,1762554296596,-400.0,0.00044254,120]
[393379781,1762554296624,-346.38960639,0.00044254,120]
[393379782,1762554296654,-200.0,0.00044293,120]
[393379783,1762554296704,-232.37579087,0.00044383,120]
[393379784,1762554296741,-172.26003799,0.00044383,120]
[393379785,1762554296780,-178.44988153,0.00044383,120]
[393379786,1762554296820,-150.0,0.00044384,30]
[393379787,1762554296855,-150.0,0.00044384,30]
[393379788,1762554296891,-186.88071713,0.00044384,30]
[393379789,1762554296929,-150.0,0.00044384,30]
[393379790,1762554296965,-150.0,0.00044384,30]
[393379791,1762554297004,-150.0,0.00044384,30]
[393379792,1762554297041,-194.35456018,0.00044384,30]
[393379793,1762554297078,-150.0,0.00044384,30]
[393379794,1762554297113,-150.0,0.00044384,30]
[393379795,1762554297157,-150.0,0.00044384,30]
[393379796,1762554297191,-150.0,0.00044384,30]
[393379797,1762554297221,-150.0,0.00044384,30]
[393379798,1762554297257,-150.0,0.00044384,30]
[393379799,1762554297286,-164.28732969,0.00044384,30]
[393379800,1762554297319,-150.0,0.00044384,30]
[393379801,1762554297354,-150.0,0.00044384,30]
[393379802,1762554297383,-150.0,0.00044384,30]
[393379803,1762554297417,-205.94851181,0.00044384,30]
[393379804,1762554297451,-150.0,0.00044384,30]
[393379805,1762554297486,-204.30975317,0.00044398,120]
[393379806,1762554297519,-186.88071713,0.00044433,30]
[393379807,1762554297552,-194.35456018,0.00044433,30]
[393379808,1762554297584,-150.0,0.0004444,30]
[393379809,1762554297616,-150.0,0.00044442,30]
[393379810,1762554297649,-150.0,0.00044442,30]
[393379811,1762554297684,-150.0,0.00044444,30]
[393379812,1762554297718,-150.0,0.0004448,30]
[393379813,1762554297753,-186.88071713,0.00044483,30]
[393379814,1762554297785,-194.35456018,0.00044483,30]
[393379815,1762554297817,-150.0,0.00044497,30]
[393379816,1762554297849,-615.24649237,0.000445,120]
[393379817,1762554297881,-150.0,0.00044501,30]
[393379818,1762554297912,-150.0,0.00044501,30]
[393379819,1762554297943,-150.0,0.00044501,30]
[393379820,1762554297975,-150.0,0.00044505,30]
[393379821,1762554298007,-186.88071713,0.00044533,30]
[393379822,1762554298039,-194.35456018,0.00044533,30]
[393379823,1762554298071,-150.0,0.00044554,30]
[393379824,1762554298104,-150.0,0.0004456,30]
[393379825,1762554298137,-150.0,0.0004456,30]
[393379826,1762554298169,-150.0,0.00044566,30]
[393379827,1762554298200,-150.0,0.00044577,30]
[393379828,1762554298233,-150.0,0.00044581,30]
[393379829,1762554298265,-186.88071713,0.00044583,30]
[393379830,1762554298296,-194.35456018,0.00044583,30]
[393379831,1762554298329,-150.0,0.00044598,30]
[393379832,1762554298361,-150.0,0.00044608,30]
[393379833,1762554298392,-150.0,0.0004461,30]
[393379834,1762554298426,-150.0,0.00044618,30]
[393379835,1762554298458,-150.0,0.00044618,30]
[393379836,1762554298485,-150.0,0.00044618,30]
[393379837,1762554298513,-150.0,0.00044627,30]
[393379838,1762554298539,-186.88071713,0.00044633,30]
[393379839,1762554298566,-194.35456018,0.00044633,30]
[393379840,1762554298856,-150.0,0.00044667,30]
[393379841,1762554298885,-150.0,0.00044674,30]
[393379842,1762554298912,-150.0,0.00044674,30]
[393379843,1762554298943,-150.0,0.00044677,30]
[393379844,1762554298970,-150.0,0.00044677,30]
[393379845,1762554298997,-186.88071713,0.00044682,30]
[393379846,1762554299023,-194.35456018,0.00044682,30]
[393379847,1762554299048,-150.0,0.00044688,30]
[393379848,1762554299075,-150.0,0.00044724,30]
[393379849,1762554299101,-186.88071713,0.00044732,30]
[393379850,1762554299126,-194.35456018,0.00044732,30]
[393379851,1762554299152,-150.0,0.00044736,30]
[393379852,1762554299180,-150.0,0.00044736,30]
[393379853,1762554299206,-150.0,0.00044736,30]
[393379854,1762554299232,-150.0,0.00044749,30]
[393379855,1762554299259,-150.0,0.0004477,30]
[393379856,1762554299286,-150.0,0.00044778,30]
[393379857,1762554299313,-150.0,0.0004478,30]
[393379858,1762554299340,-186.88071713,0.00044782,30]
[393379859,1762554299367,-194.35456018,0.00044782,30]
[393379860,1762554299393,-150.0,0.00044794,30]
[393379861,1762554299419,-150.0,0.00044794,30]
[393379862,1762554299446,-153.0,0.000448,120]
[393379863,1762554299472,-150.0,0.0004481,30]
[393379864,1762554299497,-150.0,0.00044812,30]
[393379865,1762554299524,-186.88071713,0.00044832,30]
[393379866,1762554299549,-194.35456018,0.00044832,30]
[393379867,1762554299574,-150.0,0.00044832,30]
[393379868,1762554299600,-150.0,0.00044837,30]
[393379869,1762554299626,-150.0,0.00044853,30]
[393379870,1762554299655,-150.0,0.00044853,30]
[393379871,1762554299684,-150.0,0.00044853,30]
[393379872,1762554299713,-150.0,0.00044867,30]
[393379873,1762554299741,-150.0,0.00044871,30]
[393379874,1762554299768,-186.88071713,0.00044882,30]
[393379875,1762554299795,-194.35456018,0.00044882,30]
[393379876,1762554299821,-441.62130637,0.0004489,120]
[393379877,1762554299863,-150.0,0.00044894,30]
[393379878,1762554299893,-516.81069004,0.000449,30]
[393379879,1762554299922,-150.0,0.00044912,30]
[393379880,1762554299950,-150.0,0.00044912,30]
[393379881,1762554299978,-186.88071713,0.00044931,30]
[393379882,1762554300006,-194.35456018,0.00044931,30]
[393379883,1762554300034,-150.0,0.00044931,30]
[393379884,1762554300063,-150.0,0.00044931,30]
[393379885,1762554300093,-150.0,0.00044931,30]
[393379886,1762554300123,-150.0,0.0004495,30]
[393379887,1762554300152,-211.0,0.0004496,30]
[393379888,1762554300182,-150.0,0.00044964,30]
[393379889,1762554300211,-150.0,0.00044964,30]
[393379890,1762554300240,-150.0,0.00044971,30]
[393379891,1762554300271,-150.0,0.00044971,30]
[393379892,1762554300300,-150.0,0.00044971,30]
[393379893,1762554300335,-150.0,0.00044975,30]
[393379894,1762554300376,-186.88071713,0.00044981,30]
[393379895,1762554300408,-194.35456018,0.00044981,30]
[393379896,1762554300442,-2912.68381048,0.0004499,120]
[393379897,1762554300473,-150.0,0.00044992,30]
[393379898,1762554300505,-1000000.0,0.00045,120]
[393379899,1762554300535,-156.8,0.00045,85]
[393379900,1762554300566,-527.68247191,0.00045,120]
[393379901,1762554300601,-743.5581022,0.00045,120]
[393379902,1762554300632,-174.29753977,0.00045,120]
[393379903,1762554300663,-159.10826563,0.00045,30]
[393379904,1762554300698,-157.73321507,0.00045,120]
[393379905,1762554300730,-189.87511958,0.00045,30]
[393379906,1762554300760,-551.60627282,0.00045,120]
[393379907,1762554300789,-16747.16,0.00045,120]
[393379908,1762554300819,-507.33836548,0.00045,120]
[393379909,1762554300851,-250.0,0.00045,120]
[393379910,1762554300882,-705.09793066,0.00045,120]
[393379911,1762554300922,-207.7621863,0.00045,120]
[393379912,1762554300956,-325289.4273,0.00045,120]
[393379913,1762554300986,-2706.0,0.00045,120]
[393379914,1762554301015,-20000.0,0.00045,120]
[393379915,1762554301043,-1147.0,0.00045,120]
[393379916,1762554301073,-150.0,0.00045007,30]
[393379917,1762554301105,-150.0,0.00045027,30]
[393379918,1762554301135,-150.0,0.00045029,30]
[393379919,1762554301166,-150.0,0.00045029,30]
[393379920,1762554301195,-186.88071713,0.00045031,30]
[393379921,1762554301225,-194.35456018,0.00045031,30]
[393379922,1762554301255,-150.0,0.00045053,30]
[393379923,1762554301284,-150.0,0.00045056,30]
[393379924,1762554301314,-150.0,0.0004506,30]
[393379925,1762554301344,-150.0,0.00045064,30]
[393379926,1762554301377,-186.88071713,0.00045081,30]
[393379927,1762554301406,-194.35456018,0.00045081,30]
[393379928,1762554301436,-150.0,0.00045088,30]
[393379929,1762554301464,-150.0,0.00045088,30]
[393379930,1762554301491,-150.0,0.00045088,30]
[393379931,1762554301519,-150.0,0.00045088,30]
[393379932,1762554301545,-150.0,0.00045093,30]
[393379933,1762554301572,-150.0,0.00045093,30]
[393379934,1762554301598,-150.0,0.00045093,30]
[393379935,1762554301625,-150.0,0.00045114,30]
[393379936,1762554301657,-150.0,0.0004512,30]
[393379937,1762554301685,-186.88071713,0.00045131,30]
[393379938,1762554301715,-194.35456018,0.00045131,30]
[393379939,1762554301744,-150.0,0.00045147,30]
[393379940,1762554301955,-150.0,0.00045147,30]
[393379941,1762554301984,-150.0,0.00045157,30]
[393379942,1762554302011,-150.0,0.00045173,30]
[393379943,1762554302038,-150.0,0.00045175,30]
[393379944,1762554302064,-150.0,0.00045177,30]
[393379945,1762554302091,-186.88071713,0.00045181,30]
[393379946,1762554302118,-194.35456018,0.00045181,30]
[393379947,1762554302144,-460.0,0.00045196,90]
[393379948,1762554302171,-154.0,0.000452,120]
[393379949,1762554302200,-150.0,0.00045205,30]
[393379950,1762554302228,-150.0,0.00045205,30]
[393379951,1762554302256,-150.0,0.00045205,30]
[393379952,1762554302286,-186.88071713,0.0004523,30]
[393379953,1762554302315,-194.35456018,0.0004523,30]
[393379954,1762554302344,-150.0,0.00045234,30]
[393379955,1762554302374,-150.0,0.00045236,30]
[393379956,1762554302403,-150.0,0.00045241,30]
[393379957,1762554302433,-150.0,0.00045254,30]
[393379958,1762554302462,-150.0,0.00045254,30]
[393379959,1762554302508,-150.0,0.00045264,30]
[393379960,1762554302542,-150.0,0.00045264,30]
[393379961,1762554302569,-186.88071713,0.0004528,30]
[393379962,1762554302596,-194.35456018,0.0004528,30]
[393379963,1762554302622,-150.0,0.0004528,30]
[393379964,1762554302649,-150.0,0.0004529,30]
[393379965,1762554302679,-150.0,0.00045297,30]
[393379966,1762554302709,-150.0,0.00045323,30]
[393379967,1762554302735,-150.0,0.00045323,30]
[393379968,1762554302761,-150.0,0.00045323,30]
[393379969,1762554302788,-186.88071713,0.0004533,30]
[393379970,1762554302815,-194.35456018,0.0004533,30]
[393379971,1762554302842,-150.0,0.00045347,30]
[393379972,1762554302868,-150.0,0.0004535,30]
[393379973,1762554302895,-150.0,0.00045358,30]
[393379974,1762554302922,-150.0,0.0004537,30]
[393379975,1762554302949,-186.88071713,0.0004538,30]
[393379976,1762554302975,-194.35456018,0.0004538,30]
[393379977,1762554303006,-150.0,0.00045382,30]
[393379978,1762554303036,-150.0,0.00045382,30]
[393379979,1762554303067,-150.0,0.00045404,30]
[393379980,1762554303096,-150.0,0.00045419,30]
[393379981,1762554303125,-200.0,0.00045427,120]
[393379982,1762554303155,-186.88071713,0.0004543,30]
[393379983,1762554303184,-194.35456018,0.0004543,30]
[393379984,1762554303215,-150.0,0.0004544,30]
[393379985,1762554303246,-150.0,0.0004544,30]
[393379986,1762554303278,-150.0,0.0004544,30]
[393379987,1762554303311,-280171.1154,0.00045444,30]
[393379988,1762554303344,-150.0,0.00045447,30]
[393379989,1762554303375,-150.0,0.00045456,30]
[393379990,1762554303405,-150.0,0.0004546,30]
[393379991,1762554303437,-186.88071713,0.00045479,30]
[393379992,1762554303467,-194.35456018,0.00045479,30]
[393379993,1762554303498,-150.0,0.00045479,30]
[393379994,1762554303530,-150.0,0.00045479,30]
[393379995,1762554303563,-150.0,0.00045479,30]
[393379996,1762554303596,-150.0,0.00045499,30]
[393379997,1762554303629,-150.0,0.00045499,30]
[393379998,1762554303663,-150.0,0.00045504,30]
[393379999,1762554303701,-150.0,0.00045517,30]
[393380000,1762554303734,-186.88071713,0.00045529,30]
[393380001,1762554303764,-194.35456018,0.00045529,30]
[393380002,1762554303795,-150.0,0.0004554,30]
[393380003,1762554303826,-150.0,0.00045544,30]
[393380004,1762554303855,-150.0,0.00045544,30]
[393380005,1762554303885,-150.0,0.00045558,30]
[393380006,1762554303915,-150.0,0.00045558,30]
[393380007,1762554303945,-150.0,0.00045558,30]
[393380008,1762554303974,-150.0,0.00045567,30]
[393380009,1762554304004,-150.0,0.00045574,30]
[393380010,1762554304034,-186.88071713,0.00045579,30]
[393380011,1762554304064,-194.35456018,0.00045579,30]
[393380012,1762554304094,-150.0,0.00045601,30]
[393380013,1762554304124,-150.0,0.00045616,30]
[393380014,1762554304154,-150.0,0.00045616,30]
[393380015,1762554304184,-186.88071713,0.00045629,30]
[393380016,1762554304215,-194.35456018,0.00045629,30]
[393380017,1762554304246,-150.0,0.00045631,30]
[393380018,1762554304276,-150.0,0.00045641,30]
[393380019,1762554304306,-150.0,0.00045662,30]
[393380020,1762554304335,-150.0,0.0004567,30]
[393380021,1762554304365,-150.0,0.00045675,30]
[393380022,1762554304395,-150.0,0.00045675,30]
[393380023,1762554304425,-150.0,0.00045675,30]
[393380024,1762554304456,-186.88071713,0.00045679,30]
[393380025,1762554304486,-194.35456018,0.00045679,30]
[393380026,1762554304518,-150.0,0.00045687,30]
[393380027,1762554304549,-153.0,0.000457,120]
[393380028,1762554304580,-553.23135052,0.000457,120]
[393380029,1762554304611,-150.0,0.00045723,30]
[393380030,1762554304640,-186.88071713,0.00045728,30]
[393380031,1762554304673,-194.35456018,0.00045728,30]
[393380032,1762554304703,-150.0,0.00045728,30]
[393380033,1762554304733,-150.0,0.00045734,30]
[393380034,1762554304763,-150.0,0.00045734,30]
[393380035,1762554304794,-150.0,0.00045737,30]
[393380036,1762554304824,-150.0,0.00045744,30]
[393380037,1762554304853,-150.0,0.00045764,30]
[393380038,1762554304883,-186.88071713,0.00045778,30]
[393380039,1762554304914,-194.35456018,0.00045778,30]
[393380040,1762554304946,-150.0,0.00045784,30]
[393380041,1762554304978,-150.0,0.00045793,30]
[393380042,1762554305010,-150.0,0.00045793,30]
[393380043,1762554305042,-150.0,0.00045793,30]
[393380044,1762554305228,-150.0,0.00045793,30]
[393380045,1762554305262,-150.0,0.00045801,30]
[393380046,1762554305296,-186.88071713,0.00045828,30]
[393380047,1762554305330,-194.35456018,0.00045828,30]
[393380048,1762554305364,-150.0,0.00045834,30]
[393380049,1762554305396,-150.0,0.00045834,30]
[393380050,1762554305427,-150.0,0.00045845,30]
[393380051,1762554305458,-150.0,0.00045851,30]
[393380052,1762554305488,-150.0,0.00045851,30]
[393380053,1762554305519,-150.0,0.00045857,30]
[393380054,1762554305548,-186.88071713,0.00045878,30]
[393380055,1762554305578,-194.35456018,0.00045878,30]
[393380056,1762554305608,-150.0,0.00045884,30]
[393380057,1762554305639,-983.76805217,0.000459,120]
[393380058,1762554305673,-150.0,0.00045906,30]
[393380059,1762554305705,-150.0,0.0004591,30]
[393380060,1762554305739,-150.0,0.0004591,30]
[393380061,1762554305771,-150.0,0.0004591,30]
[393380062,1762554305804,-150.0,0.00045914,30]
[393380063,1762554305837,-186.88071713,0.00045928,30]
[393380064,1762554305870,-194.35456018,0.00045928,30]
[393380065,1762554305902,-150.0,0.00045931,30]
[393380066,1762554305935,-150.0,0.00045953,30]
[393380067,1762554305967,-150.0,0.00045962,30]
[393380068,1762554305999,-150.0,0.00045966,30]
[393380069,1762554306031,-150.0,0.00045969,30]
[393380070,1762554306062,-150.0,0.00045969,30]
[393380071,1762554306091,-150.0,0.00045971,30]
[393380072,1762554306122,-186.88071713,0.00045978,30]
[393380073,1762554306152,-194.35456018,0.00045978,30]
[393380074,1762554306185,-1000000.0,0.00046,120]
[393380075,1762554306217,-1000000.0,0.00046,120]
[393380076,1762554306247,-199.77977412,0.00046,90]
[393380077,1762554306277,-375.95252065,0.00046,120]
[393380078,1762554306307,-594.61674783,0.00046,120]
[393380079,1762554306337,-204.18255641,0.00046,30]
[393380080,1762554306367,-3213.2751276,0.00046,30]
[393380081,1762554306398,-255.73729869,0.00046,30]
[393380082,1762554306429,-318.86350658,0.00046,120]
[393380083,1762554306460,-200.0,0.00046,120]
[393380084,1762554306495,-889358.40449495,0.00046,120]
[393380106,1762554312311,-268.91653274,0.00039795,97]
[393380107,1762554312349,-150.0,0.00044384,30]
[393380108,1762554312382,-150.0,0.00044384,30]
[393380109,1762554312413,-150.0,0.00044472,30]
[393380110,1762554312446,-150.0,0.0004456,30]
[393380111,1762554312478,-150.0,0.00044648,30]
[393380112,1762554312511,-150.0,0.00044736,30]
[393380113,1762554312544,-150.0,0.00044824,30]
[393380114,1762554312575,-150.0,0.00044912,30]
[393380115,1762554312608,-150.0,0.00045,30]
[393380116,1762554312639,-150.0,0.00045088,30]
[393380117,1762554312675,-150.0,0.00045176,30]
[393380118,1762554312708,-150.0,0.00045264,30]
[393380119,1762554312747,-150.0,0.00045352,30]
[393380120,1762554312785,-150.0,0.0004544,30]